bitfinex/quotes_ETHUSD_20220215
["timestamp","ask_amount","ask_price","bid_price","bid_amount"]
[1644921902526,1.60895,3108.5,3108.2,1.15]
[1644921902725,1.36841497,3108.4,3108.2,1.15]
[1644921903028,1.36841497,3108.4,3107.7,4.0]
[1644921903029,1.36841497,3108.4,3107.9,0.80449]
[1644921903826,3.17292497,3108.4,3107.7,4.0]
[1644921904028,1.36841497,3108.3,3107.7,0.5]
[1644921904226,1.36841497,3108.3,3107.8,0.8045]
[1644921904626,1.36841497,3108.2,3107.8,0.8045]
[1644921904928,1.36841497,3108.2,3107.8,0.80791162]
[1644921904929,1.36841497,3108.1,3107.8,0.80791162]
[1644921905372,1.36841497,3108.4,3107.8,0.80791162]
[1644921905577,2.97742497,3108.3,3107.8,0.80791162]
[1644921905976,0.8045,3108.1,3107.8,0.8045]
[1644921906274,1.36841497,3108.0,3107.8,0.80791162]
[1644921906474,1.36841497,3107.9,3107.8,0.80791162]
[1644921906675,1.36841497,3108.2,3107.8,0.00341162]
[1644921906874,1.36841497,3108.1,3107.8,0.00341162]
[1644921907177,0.80452,3108.0,3107.7,1.60451]
[1644921907373,0.80452,3108.0,3107.8,0.0034116]
[1644921907881,1.60904,3108.3,3107.8,0.8079216]
[1644921908075,1.42331153,3108.7,3107.8,0.8079216]
[1644921908076,1.36874837,3108.2,3107.9,1.4479274]
[1644921908280,0.464,3108.9,3108.0,3.11041607]
[1644921908475,1.36861973,3108.8,3108.0,3.11041607]
[1644921908674,3.58433716,3109.1,3108.0,3.11041607]
[1644921908675,1.36861973,3108.7,3108.0,3.41041607]
[1644921908882,1.36861973,3108.6,3108.2,0.80425]
[1644921909140,0.2823124,3108.6,3108.3,0.80433]
[1644921909335,1.36861973,3108.5,3108.4,0.3]
[1644921911339,1.36861973,3108.5,3108.2,0.80442]
[1644921911538,1.36861973,3108.5,3108.2,1.10442]
[1644921911736,1.36861973,3108.5,3108.2,0.3]
[1644921911937,1.36861973,3108.5,3108.0,0.3]
[1644921912137,1.36861973,3108.5,3107.8,1.32389473]
[1644921912338,1.36861973,3108.5,3107.9,1.60871]
[1644921912737,1.36861973,3108.5,3108.1,0.80442]
[1644921913174,1.36861973,3108.5,3108.0,0.3]
[1644921913488,0.2823124,3108.6,3108.2,0.8755449]
[1644921913675,0.2823124,3108.6,3108.2,1.1755449]
[1644921913877,0.2823124,3108.6,3108.2,1.9799049]
[1644921914075,0.1411562,3108.6,3108.3,0.6433194]
[1644921914275,5.56346199,3109.4,3108.3,0.6433194]
[1644921914472,0.2823124,3108.4,3108.3,2.2516494]
[1644921914673,1.45932483,3109.4,3108.4,0.0999876]
[1644921914875,1.45932483,3109.4,3108.5,1.60823]
[1644921915073,1.45932483,3109.4,3108.5,1.90823]
[1644921915773,1.45932483,3109.4,3108.8,0.85049591]
[1644921915976,1.45932483,3109.4,3108.8,1.15049591]
[1644921916173,1.45932483,3109.4,3108.8,0.3]
[1644921916826,1.45932483,3109.4,3108.9,0.6433116]
[1644921917027,1.45932483,3109.4,3109.0,0.80406]
[1644921917232,1.45932483,3109.4,3109.1,0.3]
[1644921917627,1.45932483,3109.4,3109.0,1.10406]
[1644921917827,1.45932483,3109.4,3109.0,1.90818]
[1644921918029,1.45932483,3109.4,3108.8,0.8042]
[1644921918229,1.45932483,3109.4,3108.8,0.3]
[1644921918633,1.45932483,3109.4,3108.6,0.85116367]
[1644921918929,2.26352483,3109.4,3108.8,0.80422]
[1644921919129,1.45932483,3109.4,3108.8,1.60841]
[1644921919434,1.45932483,3109.4,3108.9,0.3]
[1644921919435,4.65932483,3109.4,3108.9,0.3]
[1644921919829,4.65932483,3109.4,3108.6,2.75948367]
[1644921920028,5.46351483,3109.4,3108.8,1.60839]
[1644921920229,5.46351483,3109.4,3108.9,0.3]
[1644921920674,5.46351483,3109.4,3108.6,2.75948367]
[1644921920875,5.46351483,3109.4,3108.6,3.05948367]
[1644921921073,5.46351483,3109.4,3108.7,1.60835]
[1644921921274,5.46351483,3109.4,3108.8,0.3]
[1644921921471,5.46351483,3109.4,3108.8,1.90841]
[1644921921673,4.65932483,3109.4,3108.8,0.80421]
[1644921921875,4.65932483,3109.4,3108.9,0.3]
[1644921922473,4.65932483,3109.4,3109.0,1.60826]
[1644921922675,4.65932483,3109.4,3109.0,2.5515404]
[1644921922875,4.65932483,3109.4,3109.0,1.10413]
[1644921923075,4.65932483,3109.4,3109.0,0.3]
[1644921923273,4.65932483,3109.4,3108.9,0.3]
[1644921923475,4.65932483,3109.4,3109.0,0.80417]
[1644921923675,4.65932483,3109.4,3108.3,1.134]
[1644921923676,1.45962306,3108.9,3108.3,3.3859197]
[1644921923879,3.6601288,3108.8,3108.4,0.0999876]
[1644921924120,1.45962306,3108.9,3108.4,0.0999876]
[1644921924821,1.45962306,3108.9,3108.4,2.3520208]
[1644921925020,1.45962306,3108.9,3108.4,0.9042876]
[1644921926222,1.45962306,3108.9,3108.5,0.80425]
[1644921926526,1.45962306,3108.9,3108.6,0.80424]
[1644921926923,1.45962306,3108.9,3108.6,1.4475876]
[1644921927322,1.45962306,3108.9,3108.7,0.3]
[1644921927522,1.45962306,3108.9,3108.7,1.10419]
[1644921928569,1.45962306,3108.9,3108.7,2.71254]
[1644921929368,1.45962306,3108.9,3108.7,0.3]
[1644921929769,1.45962306,3108.9,3108.4,1.7085176]
[1644921929770,1.45962306,3108.9,3108.4,0.3999876]
[1644921929970,1.45962306,3108.9,3108.4,0.0999876]
[1644921930579,1.45962306,3108.9,3108.4,1.7084076]
[1644921930771,1.45962306,3108.9,3108.5,1.60842]
[1644921931621,1.45962306,3108.9,3108.6,0.80426]
[1644921931822,1.45962306,3108.9,3108.6,1.60853]
[1644921933422,1.36848327,3108.8,3108.6,1.60853]
[1644921934424,0.37609221,3109.0,3108.6,1.60853]
[1644921934821,0.37609221,3109.0,3108.5,0.80432]
[1644921936069,1.87237716,3109.3,3108.6,0.80431]
[1644921936271,1.06813716,3109.3,3108.7,0.80423]
[1644921936471,0.464,3109.3,3108.7,0.80423]
[1644921937572,0.464,3109.3,3108.8,0.80422]
[1644921937771,0.464,3109.3,3108.8,1.60842]
[1644921937975,4.464,3109.3,3108.8,0.8042]
[1644921938671,0.464,3109.3,3108.8,0.8042]
[1644921938870,0.464,3109.3,3108.8,1.60843]
[1644921939121,1.26823,3109.3,3108.8,1.60843]
[1644921939331,1.26823,3109.3,3108.8,0.8042]
[1644921939721,0.464,3109.3,3108.8,0.8042]
[1644921939923,0.464,3109.3,3109.0,0.8042]
[1644921940322,0.464,3109.3,3109.1,0.80417]
[1644921940524,4.0,3109.2,3109.1,0.80417]
[1644921941422,1.2682,3109.3,3109.1,0.80417]
[1644921942523,1.2682,3109.3,3109.0,0.80422]
[1644921943379,1.2682,3109.3,3108.8,0.3]
[1644921943776,1.2682,3109.3,3108.5,1.60849]
[1644921944680,1.2682,3109.3,3108.7,1.4476414]
[1644921944876,1.2682,3109.3,3108.7,0.80427]
[1644921945476,1.87233716,3109.3,3108.7,0.80427]
[1644921945677,1.87233716,3109.3,3108.8,0.80425]
[1644921945876,1.87233716,3109.3,3108.8,1.60848]
[1644921946078,1.2682,3109.3,3108.8,1.60848]
[1644921947022,0.464,3109.3,3109.0,0.80422]
[1644921947225,0.464,3109.3,3109.1,0.80414]
[1644921947425,0.464,3109.3,3109.0,0.14873688]
[1644921948222,1.2682,3109.3,3109.0,0.14873688]
[1644921948424,1.2682,3109.3,3108.4,0.81055781]
[1644921948923,1.2782,3109.3,3108.4,2.71905781]
[1644921949124,1.88233716,3109.3,3108.5,1.60854]
[1644921949427,0.60413716,3108.9,3108.3,0.0068436]
[1644921949624,0.60413716,3108.9,3108.0,0.0068436]
[1644921949625,0.464,3108.8,3108.0,0.0068436]
[1644921949828,1.06813716,3108.8,3108.0,0.0068436]
[1644921950226,1.6088662,3108.3,3108.0,0.0068436]
[1644921950486,0.464,3108.5,3108.4,0.80441]
[1644921950683,0.464,3108.5,3108.3,5.8979774]
[1644921951283,2.0729068,3108.5,3108.3,7.4567974]
[1644921951783,2.8773668,3108.5,3108.3,7.7567974]
[1644921952783,6.0773668,3108.5,3108.3,7.4567974]
[1644921953881,5.98792782,3108.5,3108.3,7.4567974]
[1644921954527,1.36865177,3108.4,3108.3,7.4567974]
[1644921956225,1.83265177,3108.4,3108.3,7.4567974]
[1644921956429,1.83265177,3108.4,3108.3,10.9567974]
[1644921956625,1.83265177,3108.4,3108.3,7.7567974]
[1644921957025,1.36865177,3108.4,3108.3,7.7567974]
[1644921957228,0.84046252,3109.0,3108.4,6.95]
[1644921957436,0.01,3109.3,3108.5,5.91244]
[1644921957895,0.01,3109.3,3108.6,0.3]
[1644921958095,0.01,3109.3,3108.6,0.80415]
[1644921958392,0.01,3109.3,3108.6,1.60828]
[1644921958794,0.8142165,3109.3,3108.6,1.60828]
[1644921959194,0.8142165,3109.3,3108.8,1.10424]
[1644921959593,0.8142165,3109.3,3108.8,1.90852]
[1644921960098,0.8142165,3109.3,3108.9,0.8043]
[1644921960299,0.8142165,3109.3,3109.0,0.3]
[1644921960495,0.8142165,3109.3,3108.9,1.60856]
[1644921960998,0.80429,3109.2,3108.9,1.60856]
[1644921961194,1.26829,3109.2,3108.9,1.60856]
[1644921961396,1.26829,3109.2,3109.0,0.80427]
[1644921961629,1.87242716,3109.2,3109.0,0.80427]
[1644921961830,2.26829,3109.2,3109.0,0.80427]
[1644921962030,2.07380621,3109.2,3109.0,0.80427]
[1644921962229,3.07380621,3109.2,3109.0,0.80427]
[1644921962636,2.26829,3109.2,3109.0,0.80427]
[1644921962830,0.61383891,3109.1,3109.0,0.80427]
[1644921963028,2.26829,3109.2,3109.0,0.80427]
[1644921963229,1.6138352,3109.1,3109.0,0.80427]
[1644921963430,0.6138352,3109.1,3109.0,0.80427]
[1644921963630,1.6138352,3109.1,3109.0,0.80427]
[1644921964230,4.8138352,3109.1,3109.0,0.80427]
[1644921964533,3.664,3109.1,3108.9,0.80447]
[1644921964732,2.6089325,3109.0,3108.9,0.80447]
[1644921964931,3.0729325,3109.0,3108.5,1.60889]
[1644921965136,0.61394375,3108.9,3108.5,1.60889]
[1644921965374,0.464,3108.8,3108.5,2.41335]
[1644921965774,0.80445,3108.7,3108.5,2.41335]
[1644921965977,0.464,3108.6,3108.5,2.41335]
[1644921966174,0.464,3108.6,3108.5,1.60889]
[1644921966577,0.8044722,3108.8,3108.5,1.60889]
[1644921966776,1.6088422,3108.8,3108.5,1.60889]
[1644921967186,1.65587331,3109.3,3108.6,3.8]
[1644921967187,0.62394375,3109.3,3108.6,3.8]
[1644921967385,0.01,3109.3,3108.8,0.80409]
[1644921967578,0.01,3109.3,3108.9,1.15866823]
[1644921967779,0.01,3109.3,3108.9,4.95866823]
[1644921967976,0.01,3109.3,3108.9,1.45866823]
[1644921968776,0.01,3109.3,3108.9,3.06686823]
[1644921969229,0.01,3109.3,3108.9,3.06690823]
[1644921970227,0.01,3109.3,3109.0,0.80421]
[1644921970628,0.01,3109.3,3109.1,0.80423]
[1644921970827,0.01,3109.3,3109.0,0.80421]
[1644921970828,0.81426,3109.3,3109.0,0.14912164]
[1644921971232,0.81426,3109.3,3109.1,0.80424]
[1644921971233,1.42820375,3109.3,3109.1,0.80424]
[1644921971630,0.61394375,3109.2,3109.1,0.80424]
[1644921971831,0.61394375,3109.2,3109.0,0.14912164]
[1644921971832,1.41825235,3109.2,3109.0,0.14912164]
[1644921972230,2.22257235,3109.2,3109.0,0.14912164]
[1644921972434,3.84436539,3109.1,3108.3,5.8479774]
[1644921972629,0.464,3109.0,3108.3,5.8479774]
[1644921972874,0.464,3109.0,3108.4,0.80449]
[1644921972875,0.8043997,3108.8,3108.4,0.80449]
[1644921973084,1.2683997,3108.8,3108.4,0.80449]
[1644921973474,0.8043997,3108.8,3108.4,0.80449]
[1644921974075,0.8043997,3108.8,3108.4,1.10449]
[1644921974476,0.7543997,3108.8,3108.5,1.60868]
[1644921974677,1.5587297,3108.8,3108.5,1.60868]
[1644921974875,1.5587297,3108.8,3108.6,0.3]
[1644921975776,1.5587297,3108.8,3108.5,1.60868]
[1644921976377,4.4587297,3108.8,3108.5,1.60868]
[1644921977134,1.36834569,3108.7,3108.5,1.60868]
[1644921980374,1.36834569,3108.7,3108.6,0.3]
[1644921981881,1.36834569,3108.7,3108.5,1.60868]
[1644921982682,1.36834569,3108.7,3108.6,0.3]
[1644921982982,1.36834569,3108.7,3108.6,3.8]
[1644921983177,1.36834569,3108.7,3108.6,1.41733101]
[1644921983878,1.36834569,3108.7,3108.6,2.22146101]
[1644921984332,1.36834569,3108.7,3108.6,1.41733101]
[1644921985936,1.36834569,3108.7,3108.6,2.22149101]
[1644921986734,1.36834569,3108.7,3108.6,5.31416777]
[1644921987135,2.9,3108.8,3108.6,5.31416777]
[1644921987336,2.9,3108.8,3108.7,3.43433496]
[1644921987740,4.26809458,3108.8,3108.7,3.43433496]
[1644921987977,4.26810585,3108.8,3108.7,3.43433496]
[1644921988177,2.9,3108.8,3108.7,3.43433496]
[1644921988483,2.9,3108.8,3108.6,1.41733101]
[1644921988877,2.9,3108.8,3108.7,3.08336947]
[1644921989677,4.26811814,3108.8,3108.6,1.41733101]
[1644921989877,1.36811814,3108.7,3108.6,1.41733101]
[1644921991930,1.36811814,3108.7,3108.6,4.48683901]
[1644921992228,2.9,3108.8,3108.6,4.48683901]
[1644921993127,2.9,3108.8,3108.6,1.41733101]
[1644921993128,1.36823235,3108.7,3108.6,1.41733101]
[1644921993738,1.36823235,3108.7,3108.6,0.3]
[1644921996583,0.01,3109.3,3108.7,5.85]
[1644921996783,0.01,3109.3,3109.1,0.80409]
[1644921996984,0.01,3109.3,3109.0,0.4340865]
[1644921998383,0.81421,3109.3,3109.1,0.80413]
[1644921998584,0.81421,3109.3,3109.1,1.60822]
[1644921998987,3.71421,3109.3,3109.1,1.60822]
[1644921999231,2.91,3109.3,3109.1,1.60822]
[1644922000031,0.01,3109.3,3109.1,1.60822]
[1644922001340,0.62394375,3109.3,3109.1,1.60822]
[1644922001834,0.01,3109.3,3109.1,1.60822]
[1644922002433,0.81421,3109.3,3109.1,1.60822]
[1644922003080,1.42815375,3109.3,3109.1,1.60822]
[1644922003383,0.81421,3109.3,3109.1,1.60822]
[1644922004080,0.81421,3109.3,3109.1,0.80413]
[1644922004081,1.42815375,3109.3,3109.1,0.80413]
[1644922004478,0.61394375,3109.2,3109.1,0.80413]
[1644922004679,0.61394375,3109.2,3109.0,1.60826]
[1644922004880,1.60065664,3109.2,3109.0,1.60826]
[1644922009933,2.21460039,3109.2,3109.0,1.60826]
[1644922011284,12.764,3109.1,3108.9,0.80448]
[1644922011484,1.6089443,3109.0,3108.3,0.0068436]
[1644922011685,0.61429837,3108.9,3108.3,0.0068436]
[1644922011885,4.61429837,3108.9,3108.3,0.0068436]
[1644922012088,4.61429837,3108.9,3108.1,0.84773422]
[1644922012285,1.07829837,3109.0,3108.2,0.0068436]
[1644922012485,1.6089345,3108.8,3108.4,1.60894]
[1644922012685,0.61429837,3109.1,3108.4,1.6157836]
[1644922012885,0.61429837,3109.1,3108.4,4.70918508]
[1644922013086,0.61429837,3109.1,3108.4,1.6157836]
[1644922013286,0.61429837,3109.1,3108.4,1.9157836]
[1644922013491,0.80425,3109.0,3108.6,1.71934728]
[1644922013687,0.8042461,3109.1,3108.6,1.71934728]
[1644922013886,0.8042461,3109.1,3108.7,3.5]
[1644922014132,2.4061503,3109.3,3108.8,0.3]
[1644922014133,0.79772,3109.3,3108.8,0.3]
[1644922014529,0.57975355,3109.3,3109.1,0.92501094]
[1644922014736,1.38387945,3109.3,3109.1,0.92501094]
[1644922015330,1.38387945,3109.3,3109.0,0.3]
[1644922015530,1.38387945,3109.3,3109.1,0.80415]
[1644922015730,0.8042,3109.2,3109.1,0.80415]
[1644922016730,1.36810992,3109.2,3109.1,0.80415]
[1644922016931,1.36810992,3109.2,3109.1,3.07227793]
[1644922017133,1.36810992,3109.2,3109.0,0.44900385]
[1644922017339,1.19405192,3109.3,3109.0,0.44900385]
[1644922017633,1.98240829,3109.2,3109.0,0.44900385]
[1644922018083,2.78664829,3109.2,3109.0,0.44900385]
[1644922018280,1.36810992,3109.1,3109.0,0.44900385]
[1644922020883,1.36810992,3109.1,3109.0,4.66942728]
[1644922021282,1.36810992,3109.1,3109.0,1.57306038]
[1644922021483,1.36810992,3109.2,3109.0,4.65131241]
[1644922021743,1.36810992,3109.2,3109.0,4.95131241]
[1644922021950,1.36810992,3109.2,3109.0,1.87306038]
[1644922023145,1.36810992,3109.2,3109.0,0.74900385]
[1644922023348,2.97651132,3109.2,3109.0,0.74900385]
[1644922023645,1.36810992,3109.1,3109.0,0.44900385]
[1644922030830,1.36810992,3109.1,3109.0,0.44784785]
[1644922035588,1.36810992,3109.1,3109.0,0.44688635]
[1644922037035,1.36810992,3109.1,3108.9,1.92902647]
[1644922037235,2.78668829,3109.1,3108.9,1.92902647]
[1644922037435,1.36810992,3109.0,3108.9,1.60865]
[1644922041089,0.80447,3108.9,3108.4,1.6157036]
[1644922041285,0.6147358,3108.6,3108.2,0.0068436]
[1644922041486,2.44684572,3108.5,3108.2,0.0068436]
[1644922041683,1.36810992,3108.4,3108.2,0.0068436]
[1644922041884,0.464,3108.3,3107.5,0.0068436]
[1644922042087,1.36810992,3108.2,3107.6,1.60909]
[1644922042285,4.24570342,3108.2,3107.8,0.01698813]
[1644922042484,1.36810992,3108.1,3107.8,0.82842173]
[1644922043085,1.36810992,3108.1,3107.8,0.0068436]
[1644922043390,2.97729462,3108.1,3107.8,0.80771156]
[1644922043586,0.6147358,3108.6,3107.8,0.80771156]
[1644922043587,1.36810992,3108.0,3107.8,1.61915516]
[1644922043786,1.1642,3108.9,3107.8,1.51915516]
[1644922043985,1.36836843,3108.8,3107.9,3.5]
[1644922044246,1.36836843,3108.8,3108.0,1.6156036]
[1644922044450,1.6087919,3108.5,3108.2,0.80442]
[1644922044645,1.36836843,3108.4,3108.3,0.0068436]
[1644922044843,1.6085807,3109.0,3108.3,0.0068436]
[1644922044844,1.36836843,3108.9,3108.3,0.0068436]
[1644922045046,2.18956115,3109.0,3108.3,0.0068436]
[1644922045047,1.36836843,3108.8,3108.3,0.0068436]
[1644922045346,2.18956115,3109.0,3108.3,1.6153036]
[1644922045347,1.36836843,3108.9,3108.3,1.6153036]
[1644922045543,1.36836843,3108.9,3108.4,0.80415]
[1644922045748,1.36836843,3108.9,3108.5,0.80419]
[1644922046445,1.36836843,3108.8,3108.5,0.80419]
[1644922046646,0.00302175,3109.2,3108.5,0.80419]
[1644922046944,0.00302175,3109.2,3108.7,0.84776205]
[1644922047145,1.37110379,3109.2,3108.7,0.84776205]
[1644922047344,1.37110379,3109.2,3108.8,3.07976807]
[1644922047745,1.37110379,3109.2,3108.8,0.80418]
[1644922047988,2.17529009,3109.2,3108.9,0.8042]
[1644922048185,1.36808204,3109.1,3109.0,2.99148044]
[1644922048384,1.37110379,3109.2,3108.9,0.8042]
[1644922048784,1.37110379,3109.2,3108.9,1.60841]
[1644922049185,0.8042669,3109.2,3109.0,0.80424]
[1644922050588,0.01708208,3109.1,3109.0,0.80424]
[1644922053939,0.01708208,3109.1,3109.0,1.94660836]
[1644922055383,0.01708208,3109.1,3109.0,0.80424]
[1644922055784,1.40958107,3109.3,3109.0,0.80424]
[1644922055984,0.8043792,3109.1,3108.9,0.8042]
[1644922056982,0.8043792,3109.1,3108.8,1.75747342]
[1644922057183,0.80433,3109.0,3108.8,0.14885342]
[1644922057387,0.8044773,3108.8,3108.3,0.0068436]
[1644922057584,0.8044773,3108.8,3108.1,0.0068436]
[1644922057585,0.464,3108.7,3108.1,0.0068436]
[1644922058183,0.464,3108.7,3108.2,1.60889]
[1644922058483,1.2684731,3108.7,3108.4,1.89593848]
[1644922058684,0.8044,3108.6,3108.4,1.60881]
[1644922058887,0.464,3108.5,3108.4,1.60881]
[1644922059133,0.464,3108.5,3108.4,0.80443]
[1644922059338,0.464,3108.5,3108.4,0.81130913]
[1644922059732,0.8044,3108.6,3108.4,1.73645655]
[1644922060033,0.8044,3108.6,3108.4,2.54086655]
[1644922061439,0.8044,3108.6,3108.4,0.00687913]
[1644922061632,0.8044,3108.6,3108.0,0.00687913]
[1644922061833,0.80448,3108.3,3107.8,0.01700614]
[1644922062034,2.413372,3108.6,3107.8,0.01700614]
[1644922062434,2.413372,3108.6,3108.1,1.60899]
[1644922062633,2.413372,3108.6,3108.2,0.00687913]
[1644922062891,0.80444,3108.4,3108.2,0.00687913]
[1644922063995,1.6088749,3108.4,3108.2,0.81133913]
[1644922064292,2.413372,3108.6,3108.2,1.61579913]
[1644922064293,0.8044,3108.5,3108.2,1.61579913]
[1644922064493,0.8044,3108.5,3108.3,0.00687913]
[1644922064891,1.2684,3108.5,3108.3,0.00687913]
[1644922065292,2.0727968,3108.5,3108.3,0.00687913]
[1644922065700,1.98709158,3108.5,3108.3,0.81132913]
[1644922065891,2.00742483,3108.5,3108.3,0.81132913]
[1644922066930,1.20302483,3108.5,3108.3,0.81132913]
[1644922068933,2.00743483,3108.5,3108.3,0.81132913]
[1644922069132,1.36843696,3108.4,3108.3,0.81132913]
[1644922069336,1.36843696,3108.4,3108.3,0.00687913]
[1644922070983,1.38874266,3108.4,3108.3,0.00687913]
[1644922075033,2.99776266,3108.4,3108.3,0.00687913]
[1644922075436,1.38874266,3108.4,3108.3,2.99666245]
[1644922075834,1.38874266,3108.4,3108.3,0.00687913]
[1644922077436,2.99777266,3108.4,3108.3,0.00687913]
[1644922077879,1.38874266,3108.4,3108.3,0.00687913]
[1644922080382,2.19319266,3108.4,3108.3,0.00687913]
[1644922080683,1.38874266,3108.4,3108.3,0.00687913]
[1644922080884,0.0203057,3108.4,3108.3,3.07924755]
[1644922081084,0.73760765,3108.5,3108.4,5.6]
[1644922081283,2.10590697,3108.5,3108.4,5.6]
[1644922082340,2.10590697,3108.5,3108.3,0.00687913]
[1644922082536,1.36829932,3108.4,3108.3,0.00687913]
[1644922083137,2.17281932,3108.4,3108.3,0.00687913]
[1644922084343,2.17281932,3108.4,3108.3,3.0934933]
[1644922084344,1.36829932,3108.4,3108.3,3.0934933]
[1644922084739,1.36829932,3108.4,3108.3,0.00687913]
[1644922085386,0.80446,3108.4,3108.3,0.00687913]
[1644922085587,2.17275932,3108.4,3108.3,0.00687913]
[1644922086588,1.36829932,3108.4,3108.3,0.00687913]
[1644922087788,2.17273932,3108.4,3108.3,0.00687913]
[1644922089135,1.36829932,3108.4,3108.3,0.00687913]
[1644922091138,2.17276932,3108.4,3108.3,0.00687913]
[1644922092338,1.36829932,3108.4,3108.3,0.00687913]
[1644922092990,1.6087365,3108.8,3108.3,3.34982784]
[1644922093190,1.36864274,3108.7,3108.3,4.15420784]
[1644922093392,2.17304274,3108.6,3108.5,0.80438]
[1644922093589,2.17304274,3108.6,3108.4,1.60876]
[1644922093792,2.4132225,3108.6,3108.5,0.8421354]
[1644922093990,3.78194903,3108.6,3108.5,0.8421354]
[1644922094191,2.17312653,3108.6,3108.5,0.8421354]
[1644922096491,2.97760753,3108.6,3108.4,0.99087704]
[1644922096735,1.36872653,3108.5,3108.3,0.81135913]
[1644922096937,2.17321653,3108.5,3108.3,1.80383866]
[1644922097136,1.36872653,3108.4,3108.3,0.99935866]
[1644922097737,1.36872653,3108.4,3108.3,1.80385866]
[1644922098142,1.36872653,3108.4,3108.3,0.99935866]
[1644922099044,2.17315653,3108.4,3108.3,0.99935866]
[1644922100240,2.17315653,3108.4,3108.3,0.00687913]
[1644922101286,1.36872653,3108.4,3108.3,0.00687913]
[1644922101487,0.8043299,3108.5,3108.3,0.00687913]
[1644922101687,1.36872653,3108.4,3108.3,0.00687913]
[1644922102084,1.36872653,3108.4,3108.3,0.95701291]
[1644922102286,2.17310653,3108.4,3108.3,0.95701291]
[1644922103288,1.36872653,3108.4,3108.3,0.95701291]
[1644922103687,2.80513076,3109.1,3108.3,4.05851533]
[1644922103890,2.19039496,3109.1,3108.4,0.8042]
[1644922104157,3.69634244,3109.2,3108.5,3.16570112]
[1644922104357,3.69634244,3109.2,3109.0,0.92061363]
[1644922104555,1.42195244,3109.2,3109.0,0.92061363]
[1644922104754,2.41566224,3109.2,3109.0,0.92061363]
[1644922104955,4.03039804,3109.2,3108.4,1.25627913]
[1644922105155,4.03039804,3109.2,3108.4,1.2494]
[1644922105156,1.4192423,3109.0,3108.4,1.2494]
[1644922105355,0.6147358,3108.9,3108.2,0.00687913]
[1644922105756,0.80445,3108.7,3108.2,0.00687913]
[1644922105961,1.4191858,3108.7,3108.2,0.81134913]
[1644922106156,1.4191858,3108.7,3108.2,0.80447]
[1644922106358,1.4191858,3108.7,3108.3,0.00687913]
[1644922106556,1.4192015,3108.7,3108.1,0.00687913]
[1644922106956,0.80449,3108.5,3108.2,0.80447]
[1644922107156,0.80449,3108.5,3108.3,0.00687913]
[1644922107559,1.6089686,3108.5,3108.3,0.00687913]
[1644922107760,1.6089686,3108.5,3108.1,0.00687913]
[1644922107989,1.6089686,3108.5,3108.2,0.80449]
[1644922108188,1.6089686,3108.5,3108.2,0.81136913]
[1644922108189,0.8045,3108.4,3108.2,0.81136913]
[1644922108593,0.8045,3108.4,3108.2,1.61581913]
[1644922108594,1.608994,3108.4,3108.2,1.61581913]
[1644922108788,1.608994,3108.4,3108.2,0.81132913]
[1644922111393,0.80452,3108.3,3108.2,0.00687913]
[1644922111838,0.804494,3108.4,3108.2,0.00687913]
[1644922112438,0.804494,3108.4,3108.2,0.81137913]
[1644922112642,1.608904,3108.4,3108.2,0.81137913]
[1644922113050,1.608904,3108.4,3108.2,0.00687913]
[1644922113239,0.804494,3108.4,3108.2,0.00687913]
[1644922113639,0.804494,3108.4,3108.2,0.81134913]
[1644922114040,0.80444,3108.3,3108.2,0.81134913]
[1644922115691,0.80444,3108.3,3108.2,0.00687913]
[1644922121547,0.00745791,3108.1,3107.5,3.4173]
[1644922121748,1.6091854,3108.0,3107.8,0.00342059]
[1644922121942,0.464,3107.9,3107.8,0.00342059]
[1644922122640,0.464,3107.9,3107.4,1.11240461]
[1644922122641,1.26862,3107.9,3107.4,1.91014725]
[1644922122897,2.073297,3107.9,3107.7,0.00342064]
[1644922123697,1.36908812,3107.8,3107.7,0.00342064]
[1644922123896,1.36908812,3107.8,3107.7,0.00691736]
[1644922124306,2.17378812,3107.8,3107.7,0.00691736]
[1644922124695,2.17378812,3107.8,3107.6,0.00342068]
[1644922124898,1.36908812,3107.7,3107.6,0.00342068]
[1644922125098,1.36908812,3107.7,3107.5,0.80473]
[1644922125296,1.36908812,3107.7,3107.5,0.81506812]
[1644922125900,2.97850802,3107.7,3107.5,0.81506812]
[1644922126098,2.97850802,3107.7,3107.5,0.01033812]
[1644922126099,1.36908812,3107.6,3107.5,0.01033812]
[1644922126399,1.36908812,3107.6,3107.5,0.00691736]
[1644922127143,2.17373812,3107.6,3107.5,0.00691736]
[1644922127343,1.36908812,3107.6,3107.5,0.00691736]
[1644922128342,1.36901308,3107.6,3107.5,0.81151736]
[1644922128543,0.8046899,3107.7,3107.5,3.01870713]
[1644922128744,0.8045279,3107.8,3107.6,0.80452]
[1644922128943,0.00745791,3108.1,3107.7,3.23328877]
[1644922129142,0.00745791,3108.1,3107.7,3.24020613]
[1644922129143,1.36894254,3108.0,3107.7,3.24020613]
[1644922129352,1.36894254,3108.0,3107.8,0.00691736]
[1644922130045,1.36894254,3108.0,3107.9,0.87690288]
[1644922130245,2.17346204,3108.0,3107.9,0.87690288]
[1644922130693,2.97799204,3108.0,3107.9,0.87690288]
[1644922132193,0.80472,3107.9,3107.8,0.00691736]
[1644922132391,0.8047283,3107.8,3107.4,0.00691736]
[1644922132593,1.36894254,3107.7,3107.3,0.01038342]
[1644922132793,2.97840254,3107.7,3107.3,0.01038342]
[1644922132997,1.36894254,3107.6,3107.3,0.01038342]
[1644922133201,1.36894254,3107.6,3107.4,1.00253293]
[1644922133395,1.36894254,3108.0,3107.4,1.00253293]
[1644922133595,0.8047131,3107.6,3107.5,0.00691736]
[1644922133795,1.36903723,3107.8,3107.5,0.00691736]
[1644922133995,1.36903723,3107.6,3107.5,0.00691736]
[1644922134240,0.00745791,3108.1,3107.5,0.81161736]
[1644922134241,1.36903723,3108.0,3107.5,0.81161736]
[1644922134442,1.36903723,3108.0,3107.5,0.8047]
[1644922134745,1.36903723,3108.0,3107.6,0.00692581]
[1644922134746,0.8046526,3107.7,3107.6,0.00692581]
[1644922134943,3.78306983,3107.7,3107.6,0.00952144]
[1644922135540,3.6081167,3107.7,3107.6,0.00952144]
[1644922135939,3.6081167,3107.7,3107.6,0.00692581]
[1644922136741,2.8034167,3107.7,3107.6,0.00692581]
[1644922139201,1.9987367,3107.7,3107.6,0.00692581]
[1644922140600,2.8033167,3107.7,3107.6,0.00692581]
[1644922141001,1.43427947,3107.7,3107.6,0.00692581]
[1644922141635,0.62969947,3107.7,3107.6,0.00692581]